lending/lending_fUSD_20240806
["ID","MTS","AMOUNT","RATE_DAILY","PERIOD"]
[334307725,1722934302949,-1000.0,0.00027397,13]
[334307726,1722934302982,-1000.0,0.00027397,13]
[334307727,1722934303005,-1000.0,0.00027397,13]
[334307728,1722934303029,-1000.0,0.00027397,13]
[334307729,1722934303053,-1000.0,0.00027397,13]
[334307730,1722934303076,-1000.0,0.00027397,13]
[334307731,1722934303100,-1000.0,0.00027397,13]
[334307732,1722934303123,-1000.0,0.00027397,13]
[334307733,1722934303146,-1000.0,0.00027397,13]
[334307734,1722934303169,-1000.0,0.00027397,13]
[334307735,1722934303192,-1000.0,0.00027397,13]
[334307736,1722934303214,-1000.0,0.00027397,13]
[334307737,1722934303237,-1000.0,0.00027397,13]
[334307738,1722934303260,-1000.0,0.00027397,13]
[334307739,1722934303284,-1000.0,0.00027397,13]
[334307740,1722934303309,-1000.0,0.00027397,13]
[334307741,1722934303333,-1000.0,0.00027397,13]
[334307742,1722934303361,-1000.0,0.00027397,13]
[334307743,1722934303385,-1000.0,0.00027397,13]
[334307744,1722934303409,-1000.0,0.00027397,13]
[334307745,1722934303432,-1000.0,0.00027397,13]
[334307746,1722934303456,-1000.0,0.00027397,13]
[334307747,1722934303479,-1000.0,0.00027397,13]
[334307748,1722934303502,-1000.0,0.00027397,13]
[334307749,1722934303526,-1000.0,0.00027397,13]
[334307750,1722934303550,-1000.0,0.00027397,13]
[334307751,1722934303573,-1000.0,0.00027397,13]
[334307752,1722934303596,-634.0,0.00027397,13]
[334307753,1722934303622,-3089.39,0.00027397,10]
[334307754,1722934303646,-711.0,0.000275,16]
[334307755,1722934303669,-245.94,0.00027534,30]
[334307756,1722934303694,-863.81,0.00027671,30]
[334307757,1722934303718,-245.94,0.00027671,30]
[334307758,1722934303742,-245.94,0.00027808,30]
[334307759,1722934303766,-391.0,0.0002783,15]
[334307760,1722934303790,-863.81,0.00027945,30]
[334307761,1722934303814,-625.0,0.00027945,30]
[334307762,1722934303839,-245.94,0.00027945,30]
[334307763,1722934303864,-711.0,0.00028,16]
[334307764,1722934303888,-245.94,0.00028082,30]
[334307765,1722934303912,-150.0,0.00028178,120]
[334307766,1722934303937,-863.81,0.00028219,30]
[334307767,1722934303961,-245.94,0.00028219,30]
[334307768,1722934304002,-245.94,0.00028356,30]
[334307769,1722934304028,-150.0,0.00028464,120]
[334307770,1722934304052,-150.0,0.0002849,120]
[334307771,1722934304077,-863.81,0.00028493,30]
[334307772,1722934304101,-245.94,0.00028493,30]
[334307773,1722934304126,-711.0,0.000285,17]
[334307774,1722934304153,-245.94,0.0002863,30]
[334307775,1722934304177,-150.0,0.00028642,120]
[334307776,1722934304202,-863.81,0.00028767,30]
[334307777,1722934304227,-625.0,0.00028767,30]
[334307778,1722934304251,-245.94,0.00028767,30]
[334307779,1722934304275,-155.0,0.0002886,20]
[334307780,1722934304300,-150.0,0.00028879,120]
[334307781,1722934304324,-245.94,0.00028904,30]
[334307782,1722934304348,-711.0,0.00029,17]
[334307783,1722934304372,-863.81,0.00029041,30]
[334307784,1722934304396,-245.94,0.00029041,30]
[334307785,1722934304419,-245.94,0.00029178,30]
[334307786,1722934304443,-150.0,0.00029197,120]
[334307787,1722934304472,-838.41,0.000292,31]
[334307788,1722934304499,-838.41,0.000292,31]
[334307789,1722934304524,-838.41,0.000292,31]
[334307790,1722934304550,-838.41,0.000292,31]
[334307791,1722934304576,-838.41,0.000292,31]
[334307792,1722934304601,-838.41,0.000292,31]
[334307793,1722934304627,-838.41,0.000292,31]
[334307794,1722934304650,-863.81,0.00029315,30]
[334307795,1722934304673,-245.94,0.00029315,30]
[334307796,1722934304696,-245.94,0.00029452,30]
[334307797,1722934304719,-711.0,0.000295,18]
[334307798,1722934304743,-863.81,0.00029589,30]
[334307799,1722934304767,-625.0,0.00029589,30]
[334307800,1722934304791,-245.94,0.00029589,30]
[334307801,1722934304816,-245.94,0.00029726,30]
[334307802,1722934304841,-1845.595629,0.0002978,10]
[334307803,1722934304865,-1000.0,0.000298,10]
[334307804,1722934304889,-1000.0,0.0002982,10]
[334307805,1722934304914,-150.0,0.00029839,120]
[334307806,1722934304938,-1000.0,0.0002984,10]
[334307807,1722934304962,-1000.0,0.0002986,10]
[334307808,1722934304985,-863.81,0.00029863,30]
[334307809,1722934305009,-245.94,0.00029863,30]
[334307810,1722934305037,-1000.0,0.0002988,10]
[334307811,1722934305296,-1000.0,0.000299,10]
[334307812,1722934305330,-1000.0,0.0002992,10]
[334307813,1722934305354,-1000.0,0.0002994,10]
[334307814,1722934305378,-1000.0,0.0002996,10]
[334307815,1722934305401,-1000.0,0.0002998,10]
[334307816,1722934305425,-245.94,0.00029999,30]
[334307817,1722934305450,-383.65538882,0.0003,30]
[334307818,1722934305473,-821.47530393,0.0003,10]
[334307819,1722934305497,-10000.0,0.0003,15]
[334307820,1722934305520,-250.0,0.0003,30]
[334307821,1722934305543,-1150.0,0.0003,120]
[334307822,1722934305567,-322.0,0.0003,60]
[334307823,1722934305592,-300.0,0.0003,120]
[334307824,1722934305617,-2994.537304,0.0003,31]
[334307825,1722934305642,-151.0,0.0003,120]
[334307826,1722934305666,-19748.63440637,0.0003,10]
[334307827,1722934305691,-711.0,0.0003,18]
[334307828,1722934305716,-150.0,0.0003,10]
[334307829,1722934305740,-1000.0,0.0003,11]
[334307830,1722934305766,-150.0,0.00030036,120]
[334307831,1722934305792,-150.0,0.00030068,120]
[334307832,1722934305816,-863.81,0.00030136,30]
[334307833,1722934305839,-245.94,0.00030136,30]
[334307834,1722934305864,-200.0,0.00030137,60]
[334307835,1722934305888,-515.10023872,0.00030137,10]
[334307836,1722934305912,-150.0,0.00030137,120]
[334307837,1722934305935,-245.94,0.00030273,30]
[334307838,1722934305959,-150.0,0.0003028,120]
[334307839,1722934305992,-2100.0,0.00030288,10]
[334307840,1722934306016,-2200.0,0.00030288,10]
[334307841,1722934306044,-806.00663058,0.00030288,10]
[334307842,1722934306067,-289.0,0.0003033,23]
[334307843,1722934306091,-863.81,0.0003041,30]
[334307844,1722934306113,-625.0,0.0003041,30]
[334307845,1722934306136,-245.94,0.0003041,30]
[334307846,1722934306160,-723.866712,0.000305,19]
[334307847,1722934306184,-150.0,0.00030535,120]
[334307848,1722934306206,-246.0242867,0.00030547,30]
[334307849,1722934306233,-564.32752607,0.00030613,30]
[334307850,1722934306255,-863.81,0.00030684,30]
[334307851,1722934306278,-250.0,0.000308,30]
[334307852,1722934306303,-863.9132521,0.00030958,30]
[334307853,1722934306327,-3600.0,0.00031,32]
[334307854,1722934306352,-150.0,0.00031196,120]
[334307855,1722934306376,-150.0,0.00031224,120]
[334307856,1722934306400,-625.0,0.00031232,30]
[334307857,1722934306423,-150.0,0.00031251,120]
[334307858,1722934306451,-150.0,0.00031334,120]
[334307859,1722934306476,-151.0,0.00031342,120]
[334307860,1722934306500,-150.0,0.00031344,120]
[334307861,1722934306525,-2100.0,0.00031384,10]
[334307862,1722934306548,-1705.08602694,0.00031384,10]
[334307863,1722934306570,-902.63296107,0.000314,30]
[334307864,1722934306593,-41287.40679192,0.000315,30]
[334307865,1722934306618,-150.0,0.00031518,120]
[334307866,1722934306641,-7095.83,0.00031552,30]
[334307867,1722934306665,-150.0,0.00031592,120]
[334307868,1722934306689,-150.0,0.00031635,120]
[334307869,1722934306714,-150.0,0.00031843,120]
[334307870,1722934306738,-150.0,0.00031965,120]
[334307871,1722934306762,-600.0,0.00032,120]
[334307872,1722934306787,-3600.0,0.00032,33]
[334307873,1722934306810,-923.56,0.00032,30]
[334307874,1722934306835,-1141.05020495,0.00032,120]
[334307875,1722934306860,-150.0,0.00032,120]
[334307876,1722934306886,-150.0,0.00032038,120]
[334307877,1722934306912,-625.0,0.00032054,30]
[334307878,1722934306937,-150.0,0.00032224,120]
[334307879,1722934306962,-150.0,0.000324,120]
[334307880,1722934306998,-690.85724993,0.0003248,10]
[334307881,1722934307025,-151.0,0.00032685,120]
[334307882,1722934307049,-2867.0,0.000327,35]
[334307883,1722934307073,-544.01129061,0.000328,30]
[334307884,1722934307097,-1000.0,0.00032876,30]
[334307885,1722934307120,-1000.0,0.00032876,30]
[334307886,1722934307144,-1000.0,0.00032876,30]
[334307887,1722934307168,-1000.0,0.00032876,30]
[334307888,1722934307193,-1000.0,0.00032876,30]
[334307889,1722934307218,-1000.0,0.00032876,30]
[334307890,1722934307243,-1000.0,0.00032876,30]
[334307891,1722934307266,-671.05005603,0.00032876,30]
[334307892,1722934307291,-625.0,0.00032876,30]
[334307893,1722934307315,-1086.95,0.00032876,120]
[334307894,1722934307339,-1086.95,0.00032876,120]
[334307895,1722934307362,-1086.95,0.00032876,120]
[334307896,1722934307386,-1086.95,0.00032876,120]
[334307897,1722934307411,-1086.95,0.00032876,120]
[334307898,1722934307435,-1086.95,0.00032876,120]
[334307899,1722934307460,-1086.95,0.00032876,120]
[334307900,1722934307497,-1086.95,0.00032876,120]
[334307901,1722934307521,-1086.95,0.00032876,120]
[334307902,1722934307545,-1086.95,0.00032876,120]
[334307903,1722934307568,-1086.95,0.00032876,120]
[334307904,1722934307591,-1086.95,0.00032876,120]
[334307905,1722934307613,-1086.95,0.00032876,120]
[334307906,1722934307636,-1086.95,0.00032876,120]
[334307907,1722934307659,-1086.95,0.00032876,120]
[334307908,1722934307682,-1086.95,0.00032876,120]
[334307909,1722934307705,-1086.95,0.00032876,120]
[334307910,1722934307730,-1086.95,0.00032876,120]
[334307911,1722934307754,-1086.95,0.00032876,120]
[334307912,1722934307778,-1086.95,0.00032876,120]
[334307913,1722934307802,-1086.95,0.00032876,120]
[334307914,1722934307825,-1086.95,0.00032876,120]
[334307915,1722934307849,-1086.95,0.00032876,120]
[334307916,1722934308121,-1086.98665744,0.00032876,120]
[334307917,1722934308147,-200.0,0.00032877,60]
[334307918,1722934308171,-500.0,0.00032877,13]
[334307919,1722934308195,-500.0,0.00032877,13]
[334307920,1722934308219,-500.0,0.00032877,13]
[334307921,1722934308243,-288.0,0.00032877,13]
[334307922,1722934308267,-454.64674842,0.000329,30]
[334307923,1722934308291,-1802.96,0.000329,30]
[334307924,1722934308316,-151.0,0.00032904,120]
[334307925,1722934308344,-150.0,0.00032929,120]
[334307926,1722934308394,-150.0,0.00032999,120]
[334307927,1722934308419,-160.78136829,0.00033,120]
[334307928,1722934308443,-3600.0,0.00033,34]
[334307929,1722934308468,-616.79796477,0.00033,60]
[334307930,1722934308492,-612.390562,0.00033,14]
[334307931,1722934308516,-53272.81169711,0.00033099,30]
[334307932,1722934308540,-2416.95,0.00033151,120]
[334307933,1722934308564,-150.0,0.00033297,120]
[334307934,1722934308587,-150.0,0.0003342,120]
[334307935,1722934308612,-150.0,0.00033496,120]
[334307936,1722934308639,-838.41,0.000335,31]
[334307937,1722934308663,-625.0,0.00033698,30]
[334307938,1722934308687,-150.0,0.00033875,120]
[334307939,1722934308711,-1600.0,0.00034,120]
[334307940,1722934308735,-600.0,0.00034,120]
[334307941,1722934308759,-151.0,0.00034027,120]
[334307942,1722934308783,-150.0,0.00034225,120]
[334307943,1722934308807,-150.0,0.0003435,120]
[334307944,1722934308835,-151.0,0.00034356,120]
[334307945,1722934308860,-625.0,0.0003452,30]
[334307946,1722934308885,-150.0,0.00034548,10]
[334307947,1722934308910,-150.0,0.00034566,120]
[334307948,1722934308934,-150.0,0.00034617,120]
[334307949,1722934308958,-150.0,0.00034677,120]
[334307950,1722934308988,-1756.379418,0.000347,14]
[334307951,1722934309012,-1000.0,0.0003472,14]
[334307952,1722934309043,-500.0,0.00034724,32]
[334307953,1722934309067,-1000.0,0.0003474,14]
[334307954,1722934309091,-1000.0,0.0003476,14]
[334307955,1722934309114,-1000.0,0.0003478,14]
[334307956,1722934309138,-150.0,0.00034795,120]
[334307957,1722934309162,-1000.0,0.000348,14]
[334307958,1722934309185,-1000.0,0.0003482,14]
[334307959,1722934309210,-1000.0,0.0003484,14]
[334307960,1722934309233,-1000.0,0.0003486,14]
[334307961,1722934309257,-1000.0,0.0003488,14]
[334307962,1722934309280,-1000.0,0.000349,20]
[334307963,1722934309304,-1000.0,0.000349,14]
[334307964,1722934309328,-1000.0,0.0003492,14]
[334307965,1722934309351,-1000.0,0.0003494,14]
[334307966,1722934309375,-1281.865209,0.0003494,14]
[334307967,1722934309398,-1000.0,0.0003496,14]
[334307968,1722934309422,-1000.0,0.0003496,14]
[334307969,1722934309446,-1000.0,0.0003498,14]
[334307970,1722934309470,-1000.0,0.0003498,14]
[334307971,1722934309494,-280.9123684,0.00035,30]
[334307972,1722934309518,-413.0,0.00035,90]
[334307973,1722934309542,-200.0,0.00035,60]
[334307974,1722934309565,-1243.50134863,0.00035,90]
[334307975,1722934309589,-1691.88682087,0.00035,30]
[334307976,1722934309613,-152.63317762,0.00035,120]
[334307977,1722934309637,-1000.0,0.00035,14]
[334307978,1722934309661,-159.050473,0.00035,10]
[334307979,1722934309687,-1000.0,0.00035,14]
[334307980,1722934309711,-625.0,0.00035342,30]
[334307981,1722934309736,-151.0,0.0003537,120]
[334307982,1722934309761,-249.62845914,0.0003549,10]
[334307983,1722934309785,-200.0,0.00035616,60]
[334307984,1722934309811,-151.0,0.00035808,120]
[334307985,1722934309839,-50000.0,0.00036,36]
[334307986,1722934309864,-2743.38425225,0.00036,120]
[334307987,1722934309890,-1300.0,0.00036,120]
[334307988,1722934309915,-2000.0,0.00036,120]
[334307989,1722934309940,-1007.0,0.00036,120]
[334307990,1722934309966,-1708.0,0.00036,120]
[334307991,1722934309991,-1289.65602806,0.00036,120]
[334307992,1722934310015,-3154.8,0.00036114,54]
[334307993,1722934310041,-150.0,0.00036131,120]
[334307994,1722934310066,-625.0,0.00036164,30]
[334307995,1722934310090,-7095.83,0.00036533,30]
[334307996,1722934310115,-364.92057232,0.00036596,120]
[334307997,1722934310140,-151.0,0.00036712,120]
[334307998,1722934310166,-150.0,0.00036824,120]
[334307999,1722934310190,-625.0,0.00036986,30]
[334308000,1722934310217,-50000.0,0.00037,37]
[334308001,1722934310242,-999.99999901,0.00037,10]
[334308002,1722934310266,-557.4060621,0.00037,120]
[334308003,1722934310292,-3060.73,0.00037,14]
[334308004,1722934310317,-159.050473,0.00037,10]
[334308005,1722934310341,-20313.07,0.00037234,30]
[334308006,1722934310365,-151.0,0.0003726,120]
[334308007,1722934310390,-205.0,0.00037463,30]
[334308008,1722934310415,-792.19426552,0.000375,120]
[334308009,1722934310439,-625.0,0.00037808,30]
[334308010,1722934310463,-2239.07917305,0.0003788,30]
[334308011,1722934310487,-5000.0,0.000379,120]
[334308012,1722934310514,-5000.0,0.000379,90]
[334308013,1722934310539,-237.32783329,0.00037999,120]
[334308014,1722934310566,-50000.0,0.00038,38]
[334308015,1722934310592,-4851.0,0.00038,100]
[334308016,1722934310618,-755.63698057,0.00038,120]
[334308017,1722934310642,-720.41329974,0.00038,30]
[334308018,1722934310924,-1300.0,0.00038,120]
[334308019,1722934310949,-2000.0,0.00038,120]
[334308020,1722934310974,-1032.13439363,0.00038,120]
[334308021,1722934310999,-1003.0358462,0.00038,120]
[334308022,1722934311024,-151.0,0.00038055,120]
[334308023,1722934311049,-150.0,0.00038329,120]
[334308024,1722934311074,-242.43222479,0.00038356,60]
[334308025,1722934311099,-1000.0,0.00038356,30]
[334308026,1722934311126,-524.55488599,0.000384,33]
[334308027,1722934311150,-1000.0,0.00038436,30]
[334308028,1722934311173,-1000.0,0.00038515,30]
[334308029,1722934311196,-1000.0,0.00038595,30]
[334308030,1722934311220,-625.0,0.0003863,30]
[334308031,1722934311243,-1000.0,0.00038675,30]
[334308032,1722934311266,-151.0,0.00038712,120]
[334308033,1722934311291,-500.0,0.00038724,36]
[334308034,1722934311315,-1000.0,0.00038754,30]
[334308035,1722934311339,-1000.0,0.00038834,30]
[334308036,1722934311362,-575.04140146,0.000389,30]
[334308037,1722934311387,-5000.0,0.000389,120]
[334308038,1722934311412,-5000.0,0.000389,90]
[334308039,1722934311437,-1000.0,0.00038914,30]
[334308040,1722934311462,-1000.0,0.00038993,30]
[334308041,1722934311490,-50000.0,0.00039,39]
[334308042,1722934311516,-160.0,0.00039,30]
[334308043,1722934311540,-1588.0,0.00039,60]
[334308044,1722934311565,-2295.488517,0.00039,120]
[334308045,1722934311591,-1150.0,0.00039,120]
[334308046,1722934311615,-3223.7528362,0.00039,120]
[334308047,1722934311640,-250.0,0.00039,120]
[334308048,1722934311665,-1038.4132184,0.00039,30]
[334308049,1722934311690,-150.0,0.00039039,120]
[334308050,1722934311716,-1000.0,0.00039073,30]
[334308051,1722934311742,-1000.0,0.00039153,30]
[334308052,1722934311766,-1000.0,0.00039178,60]
[334308053,1722934311791,-1000.0,0.00039178,60]
[334308054,1722934311816,-1000.0,0.00039178,60]
[334308055,1722934311842,-1000.0,0.00039178,60]
[334308056,1722934311868,-1000.0,0.00039178,60]
[334308057,1722934311892,-1000.0,0.00039178,60]
[334308058,1722934311917,-1000.0,0.00039178,60]
[334308059,1722934311941,-1000.0,0.00039178,60]
[334308060,1722934311966,-1000.0,0.00039178,60]
[334308061,1722934311990,-479.28018356,0.00039178,60]
[334308062,1722934312015,-1000.0,0.00039229,120]
[334308063,1722934312039,-1000.0,0.00039232,30]
[334308064,1722934312063,-1000.0,0.00039312,30]
[334308065,1722934312087,-9000.0,0.00039316,120]
[334308066,1722934312110,-461.70324308,0.00039388,10]
[334308067,1722934312134,-1000.0,0.00039392,30]
[334308068,1722934312159,-151.0,0.00039397,120]
[334308069,1722934312183,-569.56697648,0.000394,30]
[334308070,1722934312206,-625.0,0.00039452,30]
[334308071,1722934312230,-15725.64336724,0.00039452,60]
[334308072,1722934312254,-1060.47301337,0.00039452,60]
[334308073,1722934312278,-1000.0,0.00039471,30]
[334308074,1722934312305,-3440.4,0.00039529,74]
[334308075,1722934312332,-1000.0,0.00039551,30]
[334308076,1722934312359,-1000.0,0.0003963,30]
[334308077,1722934312384,-1000.0,0.0003971,30]
[334308078,1722934312408,-1000.0,0.0003979,30]
[334308079,1722934312434,-795.17423192,0.00039808,90]
[334308080,1722934312459,-1000.0,0.00039869,30]
[334308081,1722934312483,-299999.6395477,0.0003988,30]
[334308082,1722934312508,-556.08763913,0.00039898,36]
[334308083,1722934312532,-1603.70262584,0.000399,120]
[334308084,1722934312557,-4035.64476353,0.000399,30]
[334308085,1722934312581,-1000.0,0.00039949,30]
[334308086,1722934312605,-3800.40413531,0.0003998,30]
[334308087,1722934312629,-409.0,0.00039986,80]
[334308088,1722934312654,-250.0,0.00039999,30]
[334308089,1722934312679,-50000.0,0.0004,30]
[334308090,1722934312705,-50000.0,0.0004,40]
[334308091,1722934312730,-197.05842312,0.0004,30]
[334308092,1722934312754,-2018.5,0.0004,120]
[334308093,1722934312777,-477.12749073,0.0004,30]
[334308094,1722934312801,-791.19909995,0.0004,120]
[334308095,1722934312825,-153.28629342,0.0004,120]
[334308096,1722934312849,-201.96936187,0.0004,30]
[334308097,1722934312873,-637.48439287,0.0004,120]
[334308098,1722934312897,-1000.0,0.0004,20]
[334308099,1722934312921,-701.43912798,0.0004,30]
[334308100,1722934312945,-610.01488505,0.0004,30]
[334308101,1722934312969,-200.52024299,0.0004,120]
[334308102,1722934312996,-619.55591962,0.0004,120]
[334308103,1722934313022,-1815.11437352,0.0004,120]
[334308104,1722934313048,-2000.0,0.0004,120]
[334308105,1722934313079,-1483.77248608,0.0004,30]
[334308106,1722934313104,-890.0,0.0004,15]
[334308107,1722934313133,-18142.55,0.0004,30]
[334308108,1722934313158,-200.0,0.0004,90]
[334308109,1722934313182,-1172.0,0.0004,120]
[334308110,1722934313206,-5698.49415016,0.0004,120]
[334308111,1722934313231,-250.0,0.0004,120]
[334308112,1722934313256,-2110.0,0.0004,30]
[334308113,1722934313280,-594.0,0.0004,120]
[334308114,1722934313306,-196.21204697,0.0004,120]
[334308115,1722934313330,-3000.0,0.0004,120]
[334308116,1722934313354,-6878.8733,0.0004,120]
[334308117,1722934313378,-1032.13439363,0.0004,120]
[334308118,1722934313402,-1003.0358462,0.0004,120]
[334308119,1722934313426,-653.0,0.0004,120]
[334308120,1722934313452,-188.42296935,0.0004,30]
[334308121,1722934313721,-369.17867325,0.0004,30]
[334308122,1722934313747,-390.0,0.0004,60]
[334308123,1722934313771,-690.43606399,0.0004,120]
[334308124,1722934313795,-340.26053505,0.0004,120]
[334308125,1722934313820,-198.60290948,0.0004,120]
[334308126,1722934313846,-772.78,0.0004,120]
[334308127,1722934313871,-10000.0,0.0004,30]
[334308128,1722934313896,-854.43,0.0004,120]
[334308129,1722934313921,-150.0,0.0004,10]
[334308130,1722934313946,-150.0,0.0004,60]
[334308131,1722934313974,-1000.0,0.00040029,30]
[334308132,1722934313999,-36943.71450148,0.000401,30]
[334308133,1722934314025,-1000.0,0.00040108,30]
[334308134,1722934314051,-500.83817575,0.0004012,120]
[334308135,1722934314076,-888.31397004,0.00040131,30]
[334308136,1722934314100,-151.0,0.00040164,120]
[334308137,1722934314124,-1000.0,0.00040178,120]
[334308138,1722934314149,-1000.0,0.00040188,30]
[334308139,1722934314173,-5000.0,0.0004019,120]
[334308140,1722934314198,-5000.0,0.0004019,90]
[334308141,1722934314224,-315.9839708,0.000402,120]
[334308142,1722934314263,-342.4,0.00040218,120]
[334308143,1722934314289,-470.43907051,0.00040218,120]
[334308144,1722934314314,-357.59766149,0.00040218,120]
[334308145,1722934314340,-468.87484643,0.00040218,120]
[334308146,1722934314366,-2183.22347888,0.0004025,120]
[334308147,1722934314391,-168.99359672,0.00040258,40]
[334308148,1722934314414,-1000.0,0.00040268,30]
[334308149,1722934314438,-625.0,0.00040273,30]
[334308150,1722934314462,-1000.0,0.00040347,30]
[334308151,1722934314486,-100000.0,0.000404,30]
[334308152,1722934314513,-10000.0,0.000404,120]
[334308153,1722934314537,-1000.0,0.00040427,30]
[334308154,1722934314563,-476850.73441484,0.0004044,30]
[334308156,1722934503228,2048.57699458,0.00025,120]
[334308157,1722934513380,187.49,0.00017798,120]
[334308158,1722934534196,553.81,9.102e-05,2]
[334308162,1722934611257,2391.10246361,9.102e-05,2]
[334308166,1722934990835,500.0,0.00025319,120]
[334308167,1722934990890,500.0,0.00025866,120]
[334308168,1722934991431,500.0,0.00026413,120]
[334308169,1722935005229,1000.0,0.00026849,120]
[334308170,1722935014154,500.0,0.00025526,120]
[334308171,1722935014527,326.776954,0.00026796,120]
[334308172,1722935022159,500.0,0.00026202,120]
[334308173,1722935036989,200.0,0.00026413,120]
[334308174,1722935093770,-368.19,0.00010529,2]
[334308175,1722935093793,-296.38383182,0.00010591,2]
[334308176,1722935093815,-250.0,0.00010691,2]
[334308177,1722935093838,-200.0,0.00010794,2]
[334308178,1722935093860,-6202.27663207,0.00010831,2]
[334308179,1722935093883,-432.47,0.00010831,2]
[334308180,1722935093905,-300.0,0.00010899,2]
[334308181,1722935093931,-158.45495802,0.000109,2]
[334308182,1722935093953,-2680.2536,0.000109,2]
[334308183,1722935093975,-21059.1632,0.000109,2]
[334308184,1722935093997,-14811.6509,0.000109,2]
[334308185,1722935094018,-170.82621958,0.000109,2]
[334308186,1722935094040,-152.35222135,0.000109,2]
[334308187,1722935094062,-6712.40814263,0.000109,2]
[334308188,1722935094084,-691.5682084,0.000109,2]
[334308189,1722935094106,-157.80116324,0.000109,2]
[334308190,1722935094128,-1075.13869793,0.000109,2]
[334308191,1722935094149,-250.0,0.00010959,2]
[334308192,1722935094175,-153.23,0.0001099,2]
[334308193,1722935094200,-10316.14976472,0.00011,2]
[334308194,1722935121420,526.11,8.93e-05,2]
[334308224,1722935431508,-250.0,0.00010618,2]
[334308225,1722935431518,-840.0,0.0001068,2]
[334308226,1722935431528,-178.06219871,0.000109,2]
[334308227,1722935431537,-1003.4627848,0.000109,2]
[334308228,1722935431547,-157.80116322,0.000109,2]
[334308229,1722935431556,-1997.25525405,0.000109,2]
[334308230,1722935431568,-664.57727663,0.000109,2]
[334308231,1722935431679,-327.87053442,0.000109,2]
[334308232,1722935431689,-124.92756564,0.000109,2]
[334308233,1722935431701,-336.11790662,0.000109,2]
[334308234,1722935431710,-153.23,0.0001099,2]
[334308235,1722935431720,-300.0,0.00010999,2]
[334308236,1722935431729,-251.85241118,0.00011,2]
[334308240,1722935437556,-95209.40740541,0.00011,2]
[334308241,1722935437567,-32371.40144976,0.00011,2]
[334308242,1722935437673,-612.86476714,0.00011,2]
[334308243,1722935437684,-479.53282831,0.00011,2]
[334308503,1722935442681,-260.93590178,0.00011,2]
[334308504,1722935442719,-96677.1759538,0.00011,2]
[334308538,1722935446402,-55121.4411185,0.00011,2]
[334308539,1722935446419,-5519.85,0.00011,2]
[334308540,1722935447498,-1264.7968584,0.00011,2]
[334308542,1722935589955,521.940792,0.00025213,120]
[334308543,1722935590304,500.0,0.00025813,120]
[334308544,1722935590713,500.0,0.00026413,120]
[334308545,1722935593223,1000.0,0.00026849,120]
[334308546,1722935606780,500.0,0.00026202,120]
[334308547,1722935616390,499.8,8.688e-05,2]
[334308548,1722935620484,200.0,0.00026413,120]
[334308552,1722936076198,474.81,8.524e-05,2]
[334308553,1722936192061,500.0,0.00026413,120]
[334308555,1722936208769,500.0,8.455e-05,2]
[334308556,1722936209232,500.0,8.455e-05,2]
[334308557,1722936210689,500.0,8.455e-05,2]
[334308558,1722936210753,500.0,8.456e-05,2]
[334308559,1722936210799,500.0,8.456e-05,2]
[334308560,1722936211113,500.0,8.456e-05,2]